[Event "*** Titled Tuesday 3|2 Blitz"]
[Site "Chess.com"]
[Date "2016.09.06"]
[Round "8"]
[White "Saitama_Hero"]
[Black "Zhani-Z"]
[Result "1-0"]
[WhiteElo "2278"]
[BlackElo "2267"]
[TimeControl "180+2"]
[EndTime "12:40:48 PDT"]
[Termination "Saitama_Hero won by resignation"]

1. d4 {[%clk 0:03:01.9]} 1... Nf6 {[%clk 0:02:58.5]} 2. c4 {[%clk 0:03:03.3]}
2... e6 {[%clk 0:02:59.7]} 3. Nc3 {[%clk 0:03:03.7]} 3... Bb4 {[%clk 0:02:59.9]}
4. a3 {[%clk 0:03:05.3]} 4... Bxc3+ {[%clk 0:03:00.3]} 5. bxc3 {[%clk
0:03:07.2]} 5... c5 {[%clk 0:02:47]} 6. e3 {[%clk 0:03:07.6]} 6... b6 {[%clk
0:02:46.2]} 7. Bd3 {[%clk 0:03:06.9]} 7... Bb7 {[%clk 0:02:45.4]} 8. f3 {[%clk
0:03:04.2]} 8... O-O {[%clk 0:02:46.2]} 9. Ne2 {[%clk 0:03:03.1]} 9... Nc6
{[%clk 0:02:44]} 10. e4 {[%clk 0:02:58.9]} 10... Ne8 {[%clk 0:02:44.5]} 11. O-O
{[%clk 0:02:57.2]} 11... Na5 {[%clk 0:02:44.8]} 12. Be3 {[%clk 0:02:54.4]} 12...
d6 {[%clk 0:02:44.2]} 13. f4 {[%clk 0:02:50.2]} 13... f5 {[%clk 0:02:44]} 14.
Ng3 {[%clk 0:02:33.4]} 14... Qd7 {[%clk 0:02:40.1]} 15. d5 {[%clk 0:02:30.8]}
15... g6 {[%clk 0:02:37.4]} 16. Re1 {[%clk 0:02:24.4]} 16... exd5 {[%clk
0:02:21.5]} 17. cxd5 {[%clk 0:02:25.1]} 17... fxe4 {[%clk 0:02:22.3]} 18. Bxe4
{[%clk 0:02:22.7]} 18... Nf6 {[%clk 0:02:21.5]} 19. Bf3 {[%clk 0:02:05.6]} 19...
Rae8 {[%clk 0:02:20.5]} 20. f5 {[%clk 0:02:01.4]} 20... gxf5 {[%clk 0:02:20.3]}
21. Bh6 {[%clk 0:02:03]} 21... Rxe1+ {[%clk 0:02:19.6]} 22. Qxe1 {[%clk
0:02:03.4]} 22... Re8 {[%clk 0:01:37.2]} 23. Qd2 {[%clk 0:02:03.1]} 23... Kf7
{[%clk 0:00:57.3]} 24. Rf1 {[%clk 0:01:28.1]} 24... Rg8 {[%clk 0:00:48.7]} 25.
Bg5 {[%clk 0:00:39]} 25... Rg6 {[%clk 0:00:34]} 26. Nh5 {[%clk 0:00:33.8]} 26...
Nxh5 {[%clk 0:00:13.9]} 27. Bxh5 {[%clk 0:00:33]} 27... Nc4 {[%clk 0:00:14.3]}
28. Qf4 {[%clk 0:00:32.1]} 28... Bxd5 {[%clk 0:00:15]} 29. Qxf5+ {[%clk
0:00:27.5]} 29... Qxf5 {[%clk 0:00:15.1]} 30. Rxf5+ {[%clk 0:00:29]} 30... Ke6
{[%clk 0:00:16.5]} 31. Bxg6 {[%clk 0:00:28.7]} 31... hxg6 {[%clk 0:00:17.6]} 32.
Rf6+ {[%clk 0:00:30.3]} 32... Ke5 {[%clk 0:00:18.4]} 33. Rxg6 {[%clk 0:00:32.2]}
33... Kf5 {[%clk 0:00:17.8]} 34. Rg7 {[%clk 0:00:31.1]} 34... Nxa3 {[%clk
0:00:18.8]} 35. h4 {[%clk 0:00:31.3]} 35... Kg4 {[%clk 0:00:15.2]} 36. Bc1+
{[%clk 0:00:27.9]} 36... Kh5 {[%clk 0:00:14.7]} 37. Bxa3 {[%clk 0:00:29.8]}
37... Be6 {[%clk 0:00:14]} 38. Rxa7 {[%clk 0:00:29.7]} 1-0

[Event "*** Titled Tuesday 3|2 Blitz"]
[Site "Chess.com"]
[Date "2016.09.06"]
[Round "8"]
[White "FearlessKing64"]
[Black "alturas_pacificas"]
[Result "1/2-1/2"]
[WhiteElo "2303"]
[BlackElo "2147"]
[TimeControl "180+2"]
[EndTime "12:40:52 PDT"]
[Termination "Game drawn - insufficient material"]

1. e4 {[%clk 0:03:01.9]} 1... e5 {[%clk 0:03:00.8]} 2. Nf3 {[%clk 0:03:02.5]}
2... Nf6 {[%clk 0:03:02]} 3. Bc4 {[%clk 0:03:04]} 3... Nc6 {[%clk 0:03:02.9]} 4.
d4 {[%clk 0:03:02.5]} 4... exd4 {[%clk 0:02:58.3]} 5. e5 {[%clk 0:03:03.2]} 5...
d5 {[%clk 0:02:59.1]} 6. Bb5 {[%clk 0:03:04.8]} 6... Ne4 {[%clk 0:02:58.1]} 7.
Nxd4 {[%clk 0:03:06.2]} 7... Bd7 {[%clk 0:02:58.2]} 8. Bxc6 {[%clk 0:03:06.4]}
8... bxc6 {[%clk 0:02:58.3]} 9. Be3 {[%clk 0:03:07.9]} 9... Rb8 {[%clk 0:02:49]}
10. Nd2 {[%clk 0:02:54.9]} 10... Nxd2 {[%clk 0:02:44.7]} 11. Qxd2 {[%clk
0:02:54.9]} 11... Rxb2 {[%clk 0:02:45.8]} 12. Nb3 {[%clk 0:02:53.2]} 12... Qb8
{[%clk 0:02:33]} 13. Bd4 {[%clk 0:02:30.1]} 13... Bb4 {[%clk 0:02:10]} 14. Bc3
{[%clk 0:02:29.5]} 14... c5 {[%clk 0:02:00.9]} 15. a3 {[%clk 0:02:23.5]} 15...
Bf5 {[%clk 0:01:30.5]} 16. axb4 {[%clk 0:02:23.5]} 16... Rxc2 {[%clk 0:01:29.5]}
17. Qxd5 {[%clk 0:02:08.7]} 17... Rxc3 {[%clk 0:01:23.5]} 18. Nxc5 {[%clk
0:01:54.3]} 18... O-O {[%clk 0:01:19.8]} 19. O-O {[%clk 0:01:53.5]} 19... Qxb4
{[%clk 0:01:17.5]} 20. Nd7 {[%clk 0:01:36.9]} 20... Bxd7 {[%clk 0:01:12.4]} 21.
Qxd7 {[%clk 0:01:37.6]} 21... Qc5 {[%clk 0:01:11.5]} 22. e6 {[%clk 0:01:32.9]}
22... fxe6 {[%clk 0:01:11.5]} 23. Qxe6+ {[%clk 0:01:33.8]} 23... Kh8 {[%clk
0:01:13]} 24. Qa6 {[%clk 0:01:22.7]} 24... h6 {[%clk 0:00:50.8]} 25. Qxa7 {[%clk
0:01:21.1]} 25... Qxa7 {[%clk 0:00:52.2]} 26. Rxa7 {[%clk 0:01:22.5]} 26... Rc8
{[%clk 0:00:53.3]} 27. g3 {[%clk 0:01:12.3]} 27... Rf3 {[%clk 0:00:48]} 28. Kg2
{[%clk 0:01:12.4]} 28... Rf7 {[%clk 0:00:43.3]} 29. f4 {[%clk 0:01:08.9]} 29...
Kg8 {[%clk 0:00:43.3]} 30. Rc1 {[%clk 0:01:08.4]} 30... c5 {[%clk 0:00:44.2]}
31. Rxf7 {[%clk 0:01:07.4]} 31... Kxf7 {[%clk 0:00:46.1]} 32. Kf3 {[%clk
0:01:09]} 32... Kf6 {[%clk 0:00:47.5]} 33. Ke4 {[%clk 0:01:10.5]} 33... Ke6
{[%clk 0:00:44.4]} 34. f5+ {[%clk 0:01:05.7]} 34... Kd6 {[%clk 0:00:42.2]} 35.
g4 {[%clk 0:01:05.7]} 35... Re8+ {[%clk 0:00:41.4]} 36. Kf4 {[%clk 0:01:03.9]}
36... Kd5 {[%clk 0:00:41.7]} 37. h4 {[%clk 0:01:01.9]} 37... c4 {[%clk
0:00:41.5]} 38. Rd1+ {[%clk 0:00:57.5]} 38... Kc6 {[%clk 0:00:30.4]} 39. g5
{[%clk 0:00:58.7]} 39... hxg5+ {[%clk 0:00:31.1]} 40. hxg5 {[%clk 0:00:59.7]}
40... Re7 {[%clk 0:00:23.4]} 41. f6 {[%clk 0:00:58.6]} 41... gxf6 {[%clk
0:00:24.4]} 42. gxf6 {[%clk 0:01:00.5]} 42... Rf7 {[%clk 0:00:24.2]} 43. Kf5
{[%clk 0:01:01.2]} 43... Kc5 {[%clk 0:00:25.8]} 44. Ke6 {[%clk 0:01:01.4]} 44...
Rf8 {[%clk 0:00:21.6]} 45. Ke7 {[%clk 0:01:02.8]} 45... Rh8 {[%clk 0:00:20.4]}
46. f7 {[%clk 0:01:01]} 46... c3 {[%clk 0:00:20.6]} 47. Rd8 {[%clk 0:01:00.4]}
47... Rh7 {[%clk 0:00:21.6]} 48. Rc8+ {[%clk 0:00:59.8]} 48... Kd4 {[%clk
0:00:22.2]} 49. Ke8 {[%clk 0:00:58.8]} 49... Rh8+ {[%clk 0:00:21.6]} 50. f8=Q
{[%clk 0:00:59.8]} 50... Rxf8+ {[%clk 0:00:23.1]} 51. Kxf8 {[%clk 0:01:01.7]}
51... Kd3 {[%clk 0:00:24.6]} 52. Ke7 {[%clk 0:01:03.1]} 52... c2 {[%clk
0:00:26.2]} 53. Kd6 {[%clk 0:01:04.2]} 53... Kd2 {[%clk 0:00:27.7]} 54. Kd5
{[%clk 0:01:05.4]} 54... c1=Q {[%clk 0:00:28.9]} 55. Rxc1 {[%clk 0:01:06.9]}
55... Kxc1 {[%clk 0:00:30.8]} 1/2-1/2

[Event "*** Titled Tuesday 3|2 Blitz"]
[Site "Chess.com"]
[Date "2016.09.06"]
[Round "8"]
[White "PowerThinking2650"]
[Black "Lali-Rustavi"]
[Result "1-0"]
[WhiteElo "2151"]
[BlackElo "1812"]
[TimeControl "180+2"]
[EndTime "12:40:52 PDT"]
[Termination "PowerThinking2650 won by resignation"]

1. e4 {[%clk 0:03:01.7]} 1... c6 {[%clk 0:02:58.2]} 2. d4 {[%clk 0:03:01.4]}
2... d5 {[%clk 0:02:59.3]} 3. Nc3 {[%clk 0:03:03.3]} 3... dxe4 {[%clk 0:03:00]}
4. Nxe4 {[%clk 0:03:04.7]} 4... Nf6 {[%clk 0:03:01.2]} 5. Nxf6+ {[%clk
0:03:05.2]} 5... gxf6 {[%clk 0:03:02.3]} 6. c3 {[%clk 0:03:06.1]} 6... Bf5
{[%clk 0:03:02.6]} 7. Ne2 {[%clk 0:03:06.4]} 7... e6 {[%clk 0:03:03.6]} 8. Ng3
{[%clk 0:03:07.1]} 8... Bg6 {[%clk 0:03:04.9]} 9. h4 {[%clk 0:03:02.5]} 9... h5
{[%clk 0:03:00.5]} 10. Be2 {[%clk 0:03:00.7]} 10... Qa5 {[%clk 0:02:50]} 11. b4
{[%clk 0:02:53.4]} 11... Qc7 {[%clk 0:02:41.6]} 12. Nxh5 {[%clk 0:02:50.5]}
12... Bxh5 {[%clk 0:02:41.2]} 13. Bxh5 {[%clk 0:02:50.4]} 13... Nd7 {[%clk
0:02:38.1]} 14. g3 {[%clk 0:02:43.8]} 14... Bd6 {[%clk 0:02:38.6]} 15. Qf3
{[%clk 0:02:37.1]} 15... f5 {[%clk 0:02:38.7]} 16. Qe2 {[%clk 0:02:35.2]} 16...
Nf6 {[%clk 0:02:33.8]} 17. Qxe6+ {[%clk 0:02:32.2]} 17... Be7 {[%clk 0:02:32.3]}
18. Bxf7+ {[%clk 0:02:21.1]} 18... Kd8 {[%clk 0:02:33.3]} 19. Bf4 {[%clk
0:02:19.1]} 19... Qd7 {[%clk 0:02:28]} 20. O-O {[%clk 0:02:08.4]} 20... Ne4
{[%clk 0:02:19.5]} 21. Rac1 {[%clk 0:02:00.3]} 21... Qxe6 {[%clk 0:02:11.6]} 22.
Bxe6 {[%clk 0:02:00.4]} 22... Rh5 {[%clk 0:02:09.1]} 23. f3 {[%clk 0:01:59.1]}
23... Nd6 {[%clk 0:02:00.4]} 24. c4 {[%clk 0:01:56.3]} 24... a5 {[%clk
0:01:43.8]} 25. a3 {[%clk 0:01:48]} 25... axb4 {[%clk 0:01:44.5]} 26. axb4
{[%clk 0:01:48.2]} 26... Ra2 {[%clk 0:01:44.9]} 27. Ra1 {[%clk 0:01:44.1]} 27...
Ra6 {[%clk 0:01:04.4]} 28. Rxa6 {[%clk 0:01:36.1]} 28... bxa6 {[%clk 0:01:03.3]}
29. Ra1 {[%clk 0:01:37.6]} 29... Bf6 {[%clk 0:00:48.4]} 30. Be5 {[%clk
0:01:33.4]} 30... Bxe5 {[%clk 0:00:47.4]} 31. dxe5 {[%clk 0:01:34.3]} 31... Nb7
{[%clk 0:00:45.4]} 32. Rxa6 {[%clk 0:01:28.8]} 32... Ke7 {[%clk 0:00:44.1]} 33.
Ra7 {[%clk 0:01:22.2]} 33... Kxe6 {[%clk 0:00:44.7]} 34. Rxb7 {[%clk 0:01:23.3]}
34... Kxe5 {[%clk 0:00:45.9]} 35. Kf2 {[%clk 0:01:13.9]} 35... f4 {[%clk
0:00:45.8]} 36. gxf4+ {[%clk 0:01:11.2]} 36... Kxf4 {[%clk 0:00:46.7]} 37. Rf7+
{[%clk 0:01:09.9]} 37... Ke5 {[%clk 0:00:47.1]} 38. Ke3 {[%clk 0:01:05.7]} 38...
Rxh4 {[%clk 0:00:47.4]} 39. f4+ {[%clk 0:01:06.9]} 39... Ke6 {[%clk 0:00:47.5]}
40. Rb7 {[%clk 0:00:58.5]} 40... Rh3+ {[%clk 0:00:30.5]} 41. Kd4 {[%clk
0:00:58.3]} 41... Kd6 {[%clk 0:00:24.2]} 42. c5+ {[%clk 0:00:58.5]} 42... Ke6
{[%clk 0:00:25.1]} 43. Rc7 {[%clk 0:00:57.4]} 43... Kf5 {[%clk 0:00:21.8]} 44.
Rxc6 {[%clk 0:00:56.8]} 44... Kxf4 {[%clk 0:00:23]} 45. b5 {[%clk 0:00:58]}
45... Rb3 {[%clk 0:00:23.2]} 46. b6 {[%clk 0:00:57.6]} 46... Rb4+ {[%clk
0:00:23.2]} 47. Kd5 {[%clk 0:00:57.5]} 1-0

[Event "*** Titled Tuesday 3|2 Blitz"]
[Site "Chess.com"]
[Date "2016.09.06"]
[Round "8"]
[White "saraswathii"]
[Black "Haykos"]
[Result "0-1"]
[WhiteElo "2110"]
[BlackElo "2257"]
[TimeControl "180+2"]
[EndTime "12:41:08 PDT"]
[Termination "Haykos won by resignation"]

1. e4 {[%clk 0:01:40.5]} 1... e5 {[%clk 0:02:58.4]} 2. d3 {[%clk 0:01:39.7]}
2... Nc6 {[%clk 0:02:59.2]} 3. Nf3 {[%clk 0:01:40.9]} 3... g6 {[%clk 0:03:00.4]}
4. g3 {[%clk 0:01:42.2]} 4... Bg7 {[%clk 0:03:01.8]} 5. Bg2 {[%clk 0:01:43.6]}
5... d6 {[%clk 0:03:03.7]} 6. O-O {[%clk 0:01:44.4]} 6... Be6 {[%clk 0:03:05.2]}
7. c3 {[%clk 0:01:45.5]} 7... h6 {[%clk 0:03:06.5]} 8. d4 {[%clk 0:01:46.6]}
8... exd4 {[%clk 0:03:07.5]} 9. cxd4 {[%clk 0:01:45.1]} 9... d5 {[%clk
0:03:08.5]} 10. e5 {[%clk 0:01:39.5]} 10... Nge7 {[%clk 0:03:09.2]} 11. Nc3
{[%clk 0:01:39.4]} 11... Qd7 {[%clk 0:03:10.4]} 12. Be3 {[%clk 0:01:39.2]} 12...
O-O {[%clk 0:03:10.8]} 13. Qd2 {[%clk 0:01:36.8]} 13... Kh7 {[%clk 0:03:11.1]}
14. Rac1 {[%clk 0:01:36]} 14... Bh3 {[%clk 0:03:08.8]} 15. Na4 {[%clk
0:01:30.7]} 15... Bxg2 {[%clk 0:03:09.4]} 16. Kxg2 {[%clk 0:01:27.3]} 16... b6
{[%clk 0:02:43.6]} 17. Nc3 {[%clk 0:01:13.4]} 17... Nd8 {[%clk 0:02:42.8]} 18.
Ne2 {[%clk 0:01:04.8]} 18... Rc8 {[%clk 0:02:39.5]} 19. h4 {[%clk 0:01:03.1]}
19... Ne6 {[%clk 0:02:40.1]} 20. Nf4 {[%clk 0:01:03.7]} 20... Nf5 {[%clk
0:02:40.6]} 21. Nxe6 {[%clk 0:01:00]} 21... fxe6 {[%clk 0:02:42.5]} 22. Bf4
{[%clk 0:01:00.7]} 22... c5 {[%clk 0:02:41.6]} 23. dxc5 {[%clk 0:00:59.8]} 23...
bxc5 {[%clk 0:02:43.5]} 24. Rc2 {[%clk 0:00:53.3]} 24... Qa4 {[%clk 0:02:44.2]}
25. b3 {[%clk 0:00:51]} 25... Nxh4+ {[%clk 0:02:40.5]} 26. Nxh4 {[%clk 0:00:51]}
26... Qe4+ {[%clk 0:02:38.1]} 27. f3 {[%clk 0:00:51.3]} 27... Qd4 {[%clk
0:02:33.2]} 28. Kh2 {[%clk 0:00:33.2]} 28... g5 {[%clk 0:02:31.4]} 29. Bxg5
{[%clk 0:00:30.5]} 29... hxg5 {[%clk 0:02:31.3]} 30. Qxg5 {[%clk 0:00:31.5]}
30... Qxe5 {[%clk 0:02:32.4]} 31. Qg6+ {[%clk 0:00:32]} 31... Kg8 {[%clk
0:02:33.3]} 32. Rff2 {[%clk 0:00:21.5]} 32... Rf6 {[%clk 0:02:28.6]} 33. Qg4
{[%clk 0:00:21.7]} 33... d4 {[%clk 0:02:06.8]} 34. Rfe2 {[%clk 0:00:20.6]} 34...
Qd6 {[%clk 0:02:07]} 35. Kg2 {[%clk 0:00:19.3]} 35... d3 {[%clk 0:02:07.1]} 36.
Red2 {[%clk 0:00:16.6]} 36... dxc2 {[%clk 0:02:08.2]} 37. Rxd6 {[%clk
0:00:17.8]} 37... c1=Q {[%clk 0:02:09.4]} 38. Rxe6 {[%clk 0:00:19.3]} 38... Qb2+
{[%clk 0:02:03.9]} 39. Kh3 {[%clk 0:00:19.4]} 39... Rcf8 {[%clk 0:02:04.1]} 40.
Re7 {[%clk 0:00:16.1]} 40... R6f7 {[%clk 0:02:05.3]} 41. Ng6 {[%clk 0:00:10.7]}
41... Qf6 {[%clk 0:02:00.8]} 42. Re6 {[%clk 0:00:09.3]} 42... Qxf3 {[%clk
0:02:01]} 43. Nxf8 {[%clk 0:00:10.5]} 43... Qxg4+ {[%clk 0:02:01.5]} 44. Kxg4
{[%clk 0:00:12.4]} 44... Kxf8 {[%clk 0:02:02.3]} 45. Rc6 {[%clk 0:00:13]} 45...
Bd4 {[%clk 0:02:03.3]} 46. Rc8+ {[%clk 0:00:14.2]} 46... Kg7 {[%clk 0:02:04.3]}
47. Rd8 {[%clk 0:00:13]} 47... Kf6 {[%clk 0:02:02.3]} 48. b4 {[%clk 0:00:13.8]}
48... Ke5 {[%clk 0:01:57.5]} 49. bxc5 {[%clk 0:00:14.7]} 49... Bxc5 {[%clk
0:01:59.4]} 50. Rd3 {[%clk 0:00:15.1]} 50... Rf2 {[%clk 0:01:58.5]} 51. a4
{[%clk 0:00:14.4]} 51... Ra2 {[%clk 0:01:59.3]} 52. Rc3 {[%clk 0:00:14.3]} 52...
Bd4 {[%clk 0:01:59.1]} 53. Rc4 {[%clk 0:00:15.4]} 53... Kd5 {[%clk 0:02:00.5]}
54. Rb4 {[%clk 0:00:16.4]} 54... Bc5 {[%clk 0:01:57.7]} 55. Rf4 {[%clk
0:00:17.4]} 55... Bd4 {[%clk 0:01:58.6]} 56. Rf5+ {[%clk 0:00:18.1]} 56... Kc4
{[%clk 0:01:59.8]} 57. Ra5 {[%clk 0:00:18.5]} 57... Bb6 {[%clk 0:02:00.9]} 58.
Rf5 {[%clk 0:00:17.1]} 58... Rxa4 {[%clk 0:02:02]} 59. Kf3 {[%clk 0:00:16.3]}
59... Bd4 {[%clk 0:01:59.7]} 0-1

[Event "*** Titled Tuesday 3|2 Blitz"]
[Site "Chess.com"]
[Date "2016.09.06"]
[Round "8"]
[White "Alexander_Moskalenko"]
[Black "E-Shaposhnikov"]
[Result "1/2-1/2"]
[WhiteElo "2646"]
[BlackElo "2666"]
[TimeControl "180+2"]
[EndTime "12:41:28 PDT"]
[Termination "Game drawn by repetition"]

1. d4 {[%clk 0:03:02]} 1... Nf6 {[%clk 0:03:00.6]} 2. Nf3 {[%clk 0:03:01.7]}
2... e6 {[%clk 0:03:01.5]} 3. e3 {[%clk 0:03:03.2]} 3... b6 {[%clk 0:03:01.9]}
4. Bd3 {[%clk 0:03:04.8]} 4... Bb7 {[%clk 0:03:02.6]} 5. O-O {[%clk 0:03:05.9]}
5... d5 {[%clk 0:03:02.6]} 6. c4 {[%clk 0:03:07.1]} 6... Bd6 {[%clk 0:03:02.3]}
7. Nc3 {[%clk 0:03:07.1]} 7... Nbd7 {[%clk 0:02:52.5]} 8. b3 {[%clk 0:03:07.1]}
8... a6 {[%clk 0:02:51]} 9. Bb2 {[%clk 0:03:08.5]} 9... O-O {[%clk 0:02:50.5]}
10. Qe2 {[%clk 0:03:09.8]} 10... Ne4 {[%clk 0:02:50.1]} 11. cxd5 {[%clk
0:03:08.1]} 11... exd5 {[%clk 0:02:48.3]} 12. Qc2 {[%clk 0:03:09.7]} 12... Qe7
{[%clk 0:02:44.2]} 13. Ne2 {[%clk 0:03:11]} 13... f5 {[%clk 0:02:27]} 14. Rac1
{[%clk 0:03:08.5]} 14... Rac8 {[%clk 0:02:21.1]} 15. Qb1 {[%clk 0:03:04.3]}
15... g5 {[%clk 0:02:11.7]} 16. Qa1 {[%clk 0:03:05.1]} 16... Qg7 {[%clk
0:02:01.8]} 17. Ne5 {[%clk 0:03:05.4]} 17... Qh6 {[%clk 0:02:00]} 18. f3 {[%clk
0:03:03.4]} 18... g4 {[%clk 0:01:43.6]} 19. Nf4 {[%clk 0:01:53.5]} 19... Nxe5
{[%clk 0:01:33.2]} 20. dxe5 {[%clk 0:01:52.6]} 20... Bc5 {[%clk 0:01:33.1]} 21.
Bd4 {[%clk 0:01:47.4]} 21... g3 {[%clk 0:01:27.3]} 22. h3 {[%clk 0:01:48.7]}
22... Bxd4 {[%clk 0:01:25.8]} 23. Qxd4 {[%clk 0:01:48.9]} 23... c5 {[%clk
0:01:24.9]} 24. Qb2 {[%clk 0:01:50.3]} 24... Ng5 {[%clk 0:01:25.1]} 25. Bb1
{[%clk 0:01:39.5]} 25... Rce8 {[%clk 0:01:16.3]} 26. b4 {[%clk 0:01:31]} 26...
c4 {[%clk 0:01:13.9]} 27. Qc3 {[%clk 0:01:32.1]} 27... Qg7 {[%clk 0:01:11.5]}
28. Nh5 {[%clk 0:01:28.5]} 28... Qxe5 {[%clk 0:01:02]} 29. Qxe5 {[%clk
0:01:28.9]} 29... Rxe5 {[%clk 0:01:03.9]} 30. f4 {[%clk 0:01:30.6]} 30... Nxh3+
{[%clk 0:01:00.3]} 31. gxh3 {[%clk 0:01:31.2]} 31... Rxe3 {[%clk 0:01:02.2]} 32.
Rfe1 {[%clk 0:01:27.6]} 32... Rxe1+ {[%clk 0:00:46.5]} 33. Rxe1 {[%clk
0:01:29.5]} 33... d4 {[%clk 0:00:48.1]} 34. Nxg3 {[%clk 0:01:30.6]} 34... d3
{[%clk 0:00:47.2]} 35. Kf2 {[%clk 0:01:31.7]} 35... b5 {[%clk 0:00:47.7]} 36. a3
{[%clk 0:01:09.9]} 36... Kf7 {[%clk 0:00:43.6]} 37. Nxf5 {[%clk 0:01:10.7]}
37... Kg6 {[%clk 0:00:44.3]} 38. Nd6 {[%clk 0:01:11]} 38... Rxf4+ {[%clk
0:00:44.3]} 39. Ke3 {[%clk 0:01:12.4]} 39... Rf3+ {[%clk 0:00:43.2]} 40. Kd4
{[%clk 0:01:13.6]} 40... Bc6 {[%clk 0:00:41.7]} 41. Re6+ {[%clk 0:01:07.9]}
41... Rf6 {[%clk 0:00:37.5]} 42. Rxf6+ {[%clk 0:00:49]} 42... Kxf6 {[%clk
0:00:39.4]} 43. a4 {[%clk 0:00:50.7]} 43... Ke6 {[%clk 0:00:31.8]} 44. axb5
{[%clk 0:00:49.9]} 44... axb5 {[%clk 0:00:33.7]} 45. Ne4 {[%clk 0:00:50.6]}
45... Bxe4 {[%clk 0:00:28.6]} 46. Kxe4 {[%clk 0:00:51.8]} 46... Kf6 {[%clk
0:00:30.2]} 47. h4 {[%clk 0:00:31.6]} 47... h6 {[%clk 0:00:27.8]} 48. Kf4 {[%clk
0:00:28.8]} 48... Kg6 {[%clk 0:00:28.4]} 49. Kg4 {[%clk 0:00:28.5]} 49... Kf6
{[%clk 0:00:28.6]} 50. Kf4 {[%clk 0:00:28.9]} 50... Kg6 {[%clk 0:00:29.1]} 51.
Kg4 {[%clk 0:00:25.4]} 51... Kf6 {[%clk 0:00:30.2]} 52. Kf4 {[%clk 0:00:27]}
52... Kg6 {[%clk 0:00:31]} 53. Kg4 {[%clk 0:00:24.3]} 1/2-1/2

[Event "*** Titled Tuesday 3|2 Blitz"]
[Site "Chess.com"]
[Date "2016.09.06"]
[Round "8"]
[White "petrpalachev"]
[Black "cassoulet"]
[Result "1-0"]
[WhiteElo "2412"]
[BlackElo "2299"]
[TimeControl "180+2"]
[EndTime "12:41:29 PDT"]
[Termination "petrpalachev won by checkmate"]

1. e3 {[%clk 0:03:00.9]} 1... d5 {[%clk 0:03:00.4]} 2. Nf3 {[%clk 0:03:01.4]}
2... g6 {[%clk 0:03:01.2]} 3. c4 {[%clk 0:03:02]} 3... Nf6 {[%clk 0:03:00.4]} 4.
Nc3 {[%clk 0:03:03.3]} 4... Bg7 {[%clk 0:03:01.2]} 5. b4 {[%clk 0:03:04.5]} 5...
O-O {[%clk 0:03:00.5]} 6. Bb2 {[%clk 0:03:05.4]} 6... a5 {[%clk 0:02:55.9]} 7.
a3 {[%clk 0:03:05.6]} 7... axb4 {[%clk 0:02:55.2]} 8. axb4 {[%clk 0:03:07.5]}
8... Rxa1 {[%clk 0:02:56.7]} 9. Qxa1 {[%clk 0:03:09.1]} 9... Na6 {[%clk
0:02:56.6]} 10. b5 {[%clk 0:03:08]} 10... Nb4 {[%clk 0:02:54.5]} 11. Qa4 {[%clk
0:03:07.2]} 11... c5 {[%clk 0:02:39.5]} 12. bxc6 {[%clk 0:03:06.6]} 12... Nxc6
{[%clk 0:02:40.6]} 13. d4 {[%clk 0:02:53.9]} 13... Qb6 {[%clk 0:02:35.9]} 14.
Qb5 {[%clk 0:02:47.1]} 14... Qxb5 {[%clk 0:02:25.4]} 15. cxb5 {[%clk 0:02:49]}
15... Nb4 {[%clk 0:02:22.8]} 16. Be2 {[%clk 0:02:43.9]} 16... Bf5 {[%clk
0:02:20.7]} 17. Kd2 {[%clk 0:02:42]} 17... Ra8 {[%clk 0:02:20.5]} 18. Ra1 {[%clk
0:02:41.1]} 18... Rxa1 {[%clk 0:02:20.4]} 19. Bxa1 {[%clk 0:02:43]} 19... e6
{[%clk 0:02:20]} 20. Ne5 {[%clk 0:02:43.3]} 20... Bf8 {[%clk 0:02:06.3]} 21. g4
{[%clk 0:02:42.9]} 21... Bc2 {[%clk 0:02:03.4]} 22. f3 {[%clk 0:02:39.7]} 22...
Bb3 {[%clk 0:02:00]} 23. Bb2 {[%clk 0:02:35.9]} 23... Ne8 {[%clk 0:01:53.4]} 24.
Nd7 {[%clk 0:02:33.5]} 24... Bd6 {[%clk 0:01:53.5]} 25. Nc5 {[%clk 0:02:31.5]}
25... b6 {[%clk 0:01:52.7]} 26. Nxb3 {[%clk 0:02:31.6]} 26... Bxh2 {[%clk
0:01:49.6]} 27. Ba3 {[%clk 0:02:32.5]} 27... Bd6 {[%clk 0:01:48.4]} 28. f4
{[%clk 0:02:33.7]} 28... f5 {[%clk 0:01:44.8]} 29. gxf5 {[%clk 0:02:33.4]} 29...
gxf5 {[%clk 0:01:45.5]} 30. Na2 {[%clk 0:02:33.1]} 30... Nxa2 {[%clk 0:01:45.4]}
31. Nc5 {[%clk 0:02:29.2]} 31... Kf7 {[%clk 0:01:36.2]} 32. Kc2 {[%clk
0:02:29.1]} 32... Nf6 {[%clk 0:01:27]} 33. Kb2 {[%clk 0:02:26.7]} 33... Ng4
{[%clk 0:01:28.1]} 34. Kxa2 {[%clk 0:02:21.8]} 34... Nxe3 {[%clk 0:01:28.8]} 35.
Nd3 {[%clk 0:02:22.5]} 35... Bc7 {[%clk 0:01:24.7]} 36. Bh5+ {[%clk 0:02:17.8]}
36... Kf6 {[%clk 0:01:24.6]} 37. Ne5 {[%clk 0:02:18.6]} 37... Ng2 {[%clk
0:01:20.5]} 38. Bc1 {[%clk 0:02:17.4]} 38... Bd6 {[%clk 0:01:14.1]} 39. Kb3
{[%clk 0:02:17.8]} 39... Nh4 {[%clk 0:01:07.7]} 40. Nd7+ {[%clk 0:02:16.9]}
40... Ke7 {[%clk 0:01:07.5]} 41. Nxb6 {[%clk 0:02:18.8]} 41... Bc7 {[%clk
0:01:06.6]} 42. Na4 {[%clk 0:02:15.4]} 42... Ng2 {[%clk 0:01:07.5]} 43. b6
{[%clk 0:02:11.9]} 43... Bb8 {[%clk 0:01:07.5]} 44. Nc5 {[%clk 0:02:11.7]} 44...
Nxf4 {[%clk 0:01:04.7]} 45. b7 {[%clk 0:01:56.9]} 45... Nxh5 {[%clk 0:01:03.2]}
46. Na6 {[%clk 0:01:55.6]} 46... Bh2 {[%clk 0:01:02.1]} 47. Ba3+ {[%clk
0:01:38.6]} 47... Kd8 {[%clk 0:01:00.4]} 48. Bc5 {[%clk 0:01:33.8]} 48... Nf6
{[%clk 0:01:00.7]} 49. Kb4 {[%clk 0:01:32.4]} 49... Nd7 {[%clk 0:01:00.3]} 50.
Kb5 {[%clk 0:01:32.7]} 50... h5 {[%clk 0:00:57.6]} 51. Kc6 {[%clk 0:01:30.9]}
51... Nb8+ {[%clk 0:00:58.7]} 52. Nxb8 {[%clk 0:01:29.7]} 52... Bxb8 {[%clk
0:01:00.6]} 53. Bd6 {[%clk 0:01:30.8]} 53... Ba7 {[%clk 0:01:02.1]} 54. Bg3
{[%clk 0:01:24.5]} 54... Ke8 {[%clk 0:00:55.8]} 55. Kc7 {[%clk 0:01:13.1]} 55...
Kf7 {[%clk 0:00:56.8]} 56. Bd6 {[%clk 0:01:08]} 56... h4 {[%clk 0:00:46.7]} 57.
Bc5 {[%clk 0:01:09]} 57... h3 {[%clk 0:00:48]} 58. Bxa7 {[%clk 0:01:09.9]} 58...
h2 {[%clk 0:00:49.4]} 59. b8=Q {[%clk 0:01:11.8]} 59... h1=Q {[%clk 0:00:49.8]}
60. Kd7 {[%clk 0:01:12.5]} 60... Qe4 {[%clk 0:00:45.6]} 61. Qe8+ {[%clk
0:00:57.8]} 61... Kf6 {[%clk 0:00:46.8]} 62. Bb6 {[%clk 0:00:57.9]} 62... f4
{[%clk 0:00:47.3]} 63. Bd8+ {[%clk 0:00:55.6]} 63... Kf5 {[%clk 0:00:48.5]} 64.
Qh5# {[%clk 0:00:55.8]} 1-0